bitfinex/quotes_ETHUSD_20240928
["timestamp","ask_amount","ask_price","bid_price","bid_amount"]
[1727557518910,4.53501,2681.4,2681.2,0.04364476]
[1727557538293,3.72941,2681.4,2681.2,0.04364476]
[1727557543530,3.72935,2681.5,2681.2,0.04364476]
[1727557543715,3.72953,2681.3,2681.2,0.59364476]
[1727557547125,3.72953,2681.3,2681.2,1.46277923]
[1727557548955,3.72939,2681.4,2681.2,1.46277923]
[1727557549153,3.72939,2681.4,2681.2,0.59364476]
[1727557550214,3.72953,2681.3,2681.2,0.04364476]
[1727557550412,3.72953,2681.3,2680.8,1.17465315]
[1727557550413,3.72982,2681.1,2680.8,0.7831021]
[1727557550619,3.73016,2680.9,2680.6,0.7933]
[1727557551670,3.73016,2680.9,2680.7,0.55]
[1727557552237,7.46036,2680.9,2680.7,0.55]
[1727557552645,3.73016,2680.9,2680.7,0.55]
[1727557553176,3.73016,2680.9,2680.4,0.55]
[1727557553177,0.8296,2680.8,2680.4,0.55]
[1727557553471,0.8296,2680.8,2680.4,1.50880421]
[1727557556049,4.55985,2680.8,2680.4,1.50880421]
[1727557563903,4.55985,2680.8,2680.6,0.55]
[1727557564403,4.55985,2680.8,2680.5,0.55]
[1727557564606,4.55985,2680.8,2680.7,0.04418748]
[1727557564906,4.55985,2680.8,2680.5,0.55]
[1727557565092,4.55985,2680.8,2680.7,0.04418748]
[1727557565404,4.55985,2680.8,2680.5,0.55]
[1727557565704,4.55985,2680.8,2680.7,0.04418748]
[1727557565910,4.55985,2680.8,2680.5,0.55]
[1727557566209,4.55985,2680.8,2680.7,0.04418748]
[1727557566418,4.55985,2680.8,2680.5,0.55]
[1727557567010,4.55985,2680.8,2680.6,0.04418748]
[1727557572712,3.73036,2680.7,2680.6,0.59418748]
[1727557573213,8.29015,2680.8,2680.6,0.59418748]
[1727557573374,8.29016,2680.8,2680.6,0.59418748]
[1727557573575,4.55985,2680.8,2680.6,0.59418748]
[1727557574012,8.29021,2680.8,2680.6,0.59418748]
[1727557574179,3.73036,2680.7,2680.6,0.59418748]
[1727557575814,0.8296,2680.8,2680.6,0.59418748]
[1727557576119,3.73025,2680.8,2680.6,0.59418748]
[1727557588725,3.73025,2680.8,2680.7,0.7667]
[1727557589101,3.73025,2680.8,2680.7,0.81102944]
[1727557593323,4.54135,2680.8,2680.7,0.04432944]
[1727557606641,6.09887797,2680.8,2680.7,0.04432944]
[1727557607135,3.73037,2680.7,2680.2,0.8301]
[1727557607321,3.73066,2680.5,2680.3,0.86905465]
[1727557607522,3.73066,2680.5,2680.2,1.48201252]
[1727557607837,3.73066,2680.5,2680.3,0.86906193]
[1727557608035,3.73066,2680.5,2680.3,0.86341766]
[1727557609043,3.73066,2680.5,2680.4,0.04489731]
[1727557612254,3.73066,2680.5,2680.1,1.30315904]
[1727557612543,3.73086,2680.4,2680.0,0.8035]
[1727557612747,3.73086,2680.4,2680.1,0.8686468]
[1727557613043,3.73086,2680.4,2680.0,1.37962552]
[1727557613239,3.73086,2680.4,2680.1,0.86864802]
[1727557613446,3.73086,2680.4,2680.0,1.37962552]
[1727557613605,3.73086,2680.4,2680.1,0.86857567]
[1727557613809,3.73086,2680.4,2680.0,2.16272762]
[1727557614034,3.73086,2680.4,2680.1,2.17139451]
[1727557614240,3.73086,2680.4,2680.0,1.37962552]
[1727557614443,3.73086,2680.4,2680.0,5.11094552]
[1727557614622,6.04555797,2680.6,2680.1,0.86856714]
[1727557614805,3.73067,2680.5,2680.0,5.11095552]
[1727557615005,3.73067,2680.5,2680.1,2.17123214]
[1727557615246,3.73067,2680.5,2680.0,5.11095552]
[1727557615427,3.73067,2680.5,2680.1,0.86848719]
[1727557615631,3.73067,2680.5,2680.0,5.11095552]
[1727557615836,3.73067,2680.5,2680.1,2.17109519]
[1727557616143,3.73067,2680.5,2680.0,5.11095552]
[1727557616344,3.73067,2680.5,2680.1,2.13099967]
[1727557616552,3.73067,2680.5,2680.1,1.26255276]
[1727557617514,8.21863,2680.6,2680.1,1.26255276]
[1727557617937,3.73074,2680.5,2680.1,1.26255276]
[1727557619712,0.7575,2680.6,2680.1,4.99370276]
[1727557619923,0.7575,2680.6,2680.1,1.26255276]
[1727557620133,3.73071,2680.5,2680.0,5.11093552]
[1727557620416,3.73071,2680.5,2680.0,0.8035]
[1727557620656,3.7308,2680.4,2680.0,0.8035]
[1727557621017,3.73071,2680.5,2680.0,4.53483]
[1727557622707,7.46146,2680.5,2680.0,4.53483]
[1727557623013,3.73071,2680.5,2680.0,4.53483]
[1727557623652,3.73071,2680.5,2680.1,0.86815904]
[1727557623854,3.73071,2680.5,2680.0,4.53483]
[1727557624024,3.73071,2680.5,2680.2,0.04518131]
[1727557624226,3.73071,2680.5,2680.0,5.73085433]
[1727557624410,3.73071,2680.5,2680.3,0.04518131]
[1727557624615,3.73071,2680.5,2680.0,4.53483]
[1727557625118,3.73071,2680.5,2680.1,0.04518131]
[1727557628738,3.7308,2680.4,2680.1,0.04518131]
[1727557629139,7.46148,2680.5,2680.1,0.04518131]
[1727557629334,3.73071,2680.5,2680.1,0.04518131]
[1727557629662,7.46145,2680.5,2680.1,0.04518131]
[1727557630028,3.73071,2680.5,2680.1,0.04518131]
[1727557630968,7.46144,2680.5,2680.1,0.04518131]
[1727557631762,3.73079,2680.4,2680.1,0.04518131]
[1727557642580,3.73106,2680.2,2680.1,0.04518131]
[1727557643089,3.73106,2680.2,2680.1,0.04402084]
[1727557643443,3.73106,2680.2,2679.8,0.7792]
[1727557643881,3.73106,2680.2,2679.9,0.04402084]
[1727557644684,3.73125,2680.1,2679.9,0.04402084]
[1727557646393,0.8059,2680.2,2679.9,0.04402084]
[1727557646394,3.73112,2680.2,2679.9,0.04402084]
[1727557646594,3.73095,2680.3,2679.9,0.04402084]
[1727557646899,7.46198,2680.3,2679.9,0.04402084]
[1727557652701,3.73095,2680.3,2679.9,0.04402084]
[1727557653705,7.46195,2680.3,2679.9,0.04402084]
[1727557654900,3.73108,2680.2,2679.9,0.04402084]
[1727557661615,3.73131,2680.1,2679.9,0.04402084]
[1727557662710,3.73134,2680.0,2679.9,0.04402084]
[1727557662911,5.28886797,2680.0,2679.9,0.04402084]
[1727557663109,5.28886797,2680.0,2679.6,0.823]
[1727557663420,5.28886797,2680.0,2679.7,0.04453054]
[1727557663421,3.73153,2679.9,2679.7,0.04453054]
[1727557666186,3.73162,2679.8,2679.7,0.04453054]
[1727557666588,5.28886797,2680.0,2679.7,0.04453054]
[1727557666789,3.73149,2679.9,2679.7,0.04453054]
[1727557668188,1.55752797,2680.0,2679.7,0.04453054]
[1727557668526,3.73135,2680.0,2679.8,0.823]
[1727557668915,3.73135,2680.0,2679.9,0.04453054]
[1727557675162,3.73116,2680.2,2679.9,0.04453054]
[1727557675451,3.73116,2680.2,2680.0,0.823]
[1727557675815,3.73116,2680.2,2680.1,0.04476454]
[1727557709193,3.73093,2680.3,2680.1,0.04476454]
[1727557709400,1.9523305,2680.9,2680.4,3.73077]
[1727557709694,3.73027,2680.8,2680.5,1.203677]
[1727557709880,7.46036,2680.9,2680.5,0.86553551]
[1727557710051,3.73018,2680.9,2680.5,0.86553551]
[1727557710251,3.73017,2680.9,2680.5,0.86553551]
[1727557710496,3.73023,2680.8,2680.5,0.86553551]
[1727557710651,3.73017,2680.9,2680.5,0.86553551]
[1727557711889,7.46034,2680.9,2680.5,0.86553551]
[1727557712079,7.46036,2680.9,2680.5,0.86553551]
[1727557712254,3.73017,2680.9,2680.5,0.86553551]
[1727557713957,3.73017,2680.9,2680.5,0.8306]
[1727557719003,7.46037,2680.9,2680.5,0.8306]
[1727557719207,3.73017,2680.9,2680.5,0.8306]
[1727557719706,7.46039,2680.9,2680.5,0.8306]
[1727557720007,7.46035,2680.9,2680.5,0.8306]
[1727557720191,3.73017,2680.9,2680.5,0.8306]
[1727557720368,7.46038,2680.9,2680.5,0.8306]
[1727557720567,3.73017,2680.9,2680.5,0.8306]
[1727557723315,3.73024,2680.8,2680.5,0.8306]
[1727557723721,3.73023,2680.8,2680.5,0.8306]
[1727557724297,3.73017,2680.9,2680.5,0.8306]
[1727557724501,7.46035,2680.9,2680.5,0.8306]
[1727557725688,3.73067,2680.5,2680.1,0.7937]
[1727557725884,3.7305,2680.6,2680.1,0.7937]
[1727557726084,7.46112,2680.6,2680.1,1.246191]
[1727557727428,3.73064,2680.5,2680.1,0.7937]
[1727557727741,3.73079,2680.4,2680.1,0.7937]
[1727557729211,3.73065,2680.5,2680.1,0.7937]
[1727557729428,3.73065,2680.5,2680.1,1.246191]
[1727557729937,3.73065,2680.5,2680.1,0.7937]
[1727557730094,3.7305,2680.6,2680.1,0.7937]
[1727557730432,3.73078,2680.4,2680.1,0.7937]
[1727557734424,0.7611,2680.5,2680.1,0.7937]
[1727557734638,4.49175,2680.5,2680.1,0.7937]
[1727557738040,3.7308,2680.4,2680.1,0.7937]
[1727557743730,7.46166,2680.4,2680.1,0.7937]
[1727557743933,3.7308,2680.4,2680.1,0.7937]
[1727557748373,3.73093,2680.3,2680.1,0.7937]
[1727557749172,3.7308,2680.4,2680.1,0.7937]
[1727557749336,3.73092,2680.3,2680.1,0.7937]
[1727557750547,3.73092,2680.3,2679.9,0.7966]
[1727557751469,3.73109,2680.2,2679.9,0.7966]
[1727557751675,3.73121,2680.1,2679.9,0.7966]
[1727557752141,3.73116,2680.2,2679.9,0.7966]
[1727557752539,3.73095,2680.3,2679.9,0.7966]
[1727557753272,4.49184,2680.5,2679.9,0.825985]
[1727557753475,3.7308,2680.4,2680.0,0.7966]
[1727557754884,3.73094,2680.3,2680.0,0.7966]
[1727557759559,3.73094,2680.3,2680.0,0.78084898]
[1727557759981,7.46197,2680.3,2680.0,0.78084898]
[1727557760470,3.73107,2680.2,2680.0,0.78084898]
[1727557774690,3.73115,2680.2,2680.0,0.78084898]
[1727557785243,3.7312,2680.1,2679.8,1.6097021]
[1727557785541,3.7312,2680.1,2679.9,2.16921538]
[1727557785750,3.7312,2680.1,2680.0,0.86768615]
[1727557785923,3.7312,2680.1,2679.8,0.8266]
[1727557786251,3.7312,2680.1,2679.9,2.16925972]
[1727557786546,3.7312,2680.1,2679.8,1.6097021]
[1727557786749,3.7312,2680.1,2679.9,2.16926198]
[1727557786952,3.7312,2680.1,2679.8,1.6097021]
[1727557787154,3.7312,2680.1,2679.9,2.169262]
[1727557787312,3.7312,2680.1,2679.8,0.8266]
[1727557787516,3.7312,2680.1,2679.9,2.16929678]
[1727557787727,3.7312,2680.1,2679.8,0.8266]
[1727557787951,3.7312,2680.1,2679.9,2.16931093]
[1727557788153,3.7312,2680.1,2679.8,1.6097021]
[1727557788338,3.7312,2680.1,2679.9,2.16929372]
[1727557788539,3.7312,2680.1,2679.8,0.8266]
[1727557788742,3.7312,2680.1,2679.9,2.16937495]
[1727557788930,3.7312,2680.1,2679.8,1.6097021]
[1727557789119,3.7312,2680.1,2679.9,2.1693574]
[1727557789452,3.7312,2680.1,2679.8,0.8266]
[1727557789654,3.7312,2680.1,2679.9,2.16935685]
[1727557789947,3.7312,2680.1,2679.8,1.6097021]
[1727557790149,3.7312,2680.1,2679.9,2.16933955]
[1727557790349,3.7312,2680.1,2679.8,1.6097021]
[1727557790519,3.7312,2680.1,2679.9,2.16938288]
[1727557790715,3.7312,2680.1,2679.8,0.8266]
[1727557790916,3.7312,2680.1,2679.9,2.16938655]
[1727557791149,3.7312,2680.1,2679.8,0.8266]
[1727557791351,3.7312,2680.1,2679.9,2.16938691]
[1727557791558,3.7312,2680.1,2679.8,0.8266]
[1727557791752,3.7312,2680.1,2679.9,2.16939895]
[1727557791918,3.7312,2680.1,2679.8,0.8266]
[1727557792120,3.7312,2680.1,2679.9,2.16939902]
[1727557792319,3.7312,2680.1,2679.8,1.6097021]
[1727557792645,3.7312,2680.1,2679.9,2.16943378]
[1727557792839,3.7312,2680.1,2679.8,1.6097021]
[1727557793149,3.7312,2680.1,2679.9,2.16943385]
[1727557793355,3.7312,2680.1,2679.8,0.8266]
[1727557793554,3.7312,2680.1,2679.9,2.16942397]
[1727557793760,3.7312,2680.1,2679.8,1.6097021]
[1727557793933,3.7312,2680.1,2679.9,2.16947606]
[1727557794133,3.7312,2680.1,2679.8,0.8266]
[1727557794353,3.7312,2680.1,2679.9,2.16947673]
[1727557794573,3.7312,2680.1,2679.8,1.6097021]
[1727557794722,3.7312,2680.1,2679.9,2.16881392]
[1727557794923,3.7312,2680.1,2679.8,1.6097021]
[1727557795239,3.7312,2680.1,2679.9,2.16881392]
[1727557795436,3.7312,2680.1,2679.8,1.6097021]
[1727557795637,3.7312,2680.1,2679.9,2.16882255]
[1727557795839,3.7312,2680.1,2679.8,1.6097021]
[1727557796037,3.7312,2680.1,2679.9,2.16881795]
[1727557796235,3.7312,2680.1,2679.8,1.6097021]
[1727557796530,3.7312,2680.1,2679.9,2.16882886]
[1727557796748,3.7312,2680.1,2679.8,1.6097021]
[1727557796943,3.7312,2680.1,2679.9,2.16882526]
[1727557797149,3.7312,2680.1,2679.8,1.6097021]
[1727557797471,3.7312,2680.1,2679.9,2.16882662]
[1727557797632,3.7312,2680.1,2679.8,1.6097021]
[1727557797844,3.7312,2680.1,2679.9,2.16881778]
[1727557798041,3.7312,2680.1,2679.8,0.8266]
[1727557798236,3.7312,2680.1,2679.9,2.1688301]
[1727557798437,3.7312,2680.1,2680.0,0.86753706]
[1727557798734,3.7312,2680.1,2679.8,1.6097021]
[1727557798938,3.7312,2680.1,2679.9,2.16885975]
[1727557799239,3.7312,2680.1,2679.8,1.6097021]
[1727557799557,3.7312,2680.1,2679.9,2.16886745]
[1727557799736,3.7312,2680.1,2679.8,1.6097021]
[1727557799937,3.7312,2680.1,2679.9,2.16887473]
[1727557800139,3.7312,2680.1,2679.8,1.6097021]
[1727557800352,3.7312,2680.1,2679.9,2.16887498]
[1727557800540,3.7312,2680.1,2679.8,1.6097021]
[1727557800756,3.7312,2680.1,2679.9,2.16892208]
[1727557800928,3.7312,2680.1,2679.8,1.6097021]
[1727557801246,3.7312,2680.1,2679.9,2.16891455]
[1727557801452,3.7312,2680.1,2679.8,0.8266]
[1727557801626,3.7312,2680.1,2679.9,2.16891032]
[1727557801821,3.7312,2680.1,2679.8,0.8266]
[1727557802127,3.7312,2680.1,2679.9,2.16891032]
[1727557802322,3.7312,2680.1,2679.8,0.8266]
[1727557802579,3.7312,2680.1,2679.9,2.16891775]
[1727557802779,3.7312,2680.1,2679.8,0.8266]
[1727557803060,3.7312,2680.1,2679.9,2.16889973]
[1727557803273,3.7312,2680.1,2679.8,1.6097021]
[1727557803454,0.7818,2680.2,2679.9,2.16889763]
[1727557803630,3.7312,2680.1,2679.8,0.8266]
[1727557803823,0.7818,2680.2,2679.9,2.1688852]
[1727557804041,3.73123,2680.1,2679.8,1.6097021]
[1727557804236,3.73123,2680.1,2679.9,2.16888688]
[1727557804441,3.73123,2680.1,2679.8,0.8266]
[1727557804761,3.73123,2680.1,2679.9,2.16887238]
[1727557804963,3.73123,2680.1,2679.8,0.8266]
[1727557805144,3.73123,2680.1,2679.9,0.86755192]
[1727557805471,0.7818,2680.2,2679.8,1.6097021]
[1727557805642,0.7818,2680.2,2679.9,2.1688485]
[1727557805845,3.7311,2680.2,2679.8,1.6097021]
[1727557806040,3.7311,2680.2,2679.9,2.16883793]
[1727557806365,3.7311,2680.2,2679.8,1.6097021]
[1727557806666,3.7311,2680.2,2679.9,2.1688405]
[1727557806963,3.7311,2680.2,2679.8,1.6097021]
[1727557807170,3.7311,2680.2,2679.9,2.16886513]
[1727557807347,3.7311,2680.2,2680.0,0.86754605]
[1727557807536,3.7311,2680.2,2679.8,1.6097021]
[1727557807737,3.7311,2680.2,2679.9,2.1688421]
[1727557807937,3.7311,2680.2,2679.8,1.6097021]
[1727557808162,3.7311,2680.2,2679.9,2.1688651]
[1727557808364,3.7311,2680.2,2679.8,1.6097021]
[1727557808639,3.7311,2680.2,2679.9,2.16886161]
[1727557808838,3.7311,2680.2,2680.0,0.86754464]
[1727557809072,3.7311,2680.2,2679.8,1.6097021]
[1727557809249,3.7311,2680.2,2679.9,2.16886306]
[1727557809449,3.7311,2680.2,2679.8,1.6097021]
[1727557809650,3.7311,2680.2,2679.9,2.1688641]
[1727557809917,3.7311,2680.2,2679.8,0.8266]
[1727557810069,3.7311,2680.2,2679.9,2.16888492]
[1727557810375,3.7311,2680.2,2679.8,0.8266]
[1727557810536,3.7311,2680.2,2679.9,2.16887643]
[1727557810737,3.7311,2680.2,2679.8,0.8266]
[1727557810936,3.7311,2680.2,2679.9,2.16887653]
[1727557811240,3.7311,2680.2,2679.8,0.8266]
[1727557811472,3.7311,2680.2,2679.9,2.16887378]
[1727557811665,3.7311,2680.2,2679.8,1.6097021]
[1727557811837,3.7311,2680.2,2679.9,2.168875]
[1727557812175,3.7311,2680.2,2679.8,0.8266]
[1727557812471,3.7311,2680.2,2679.9,2.16888688]
[1727557812772,3.7311,2680.2,2679.8,0.8266]
[1727557812978,3.7311,2680.2,2679.9,2.16886845]
[1727557813138,3.7311,2680.2,2679.8,0.8266]
[1727557813343,3.7311,2680.2,2679.9,2.1688687]
[1727557813540,3.7311,2680.2,2679.8,0.8266]
[1727557813749,3.7311,2680.2,2679.9,2.16886655]
[1727557813948,3.7311,2680.2,2679.8,1.6097021]
[1727557814148,3.7311,2680.2,2679.9,2.16885301]
[1727557814450,3.7311,2680.2,2679.8,1.6097021]
[1727557814650,3.7311,2680.2,2679.9,2.16887498]
[1727557814958,3.7311,2680.2,2679.8,0.8266]
[1727557815170,3.7311,2680.2,2679.9,2.16887568]
[1727557815371,3.7311,2680.2,2679.8,0.8266]
[1727557815566,3.7311,2680.2,2679.9,2.16887615]
[1727557815886,3.7311,2680.2,2679.8,1.6097021]
[1727557816082,3.7311,2680.2,2679.9,0.86754995]
[1727557816251,3.7311,2680.2,2679.8,1.6097021]
[1727557816451,3.73124,2680.1,2679.9,2.16888942]
[1727557816679,3.73124,2680.1,2679.8,0.8266]
[1727557816855,3.73124,2680.1,2679.9,2.16890411]
[1727557817060,3.73124,2680.1,2679.8,1.6097021]
[1727557817270,3.73124,2680.1,2679.9,2.16889697]
[1727557817471,3.73124,2680.1,2679.8,1.6097021]
[1727557817786,3.73124,2680.1,2679.9,2.16890571]
[1727557818079,3.73124,2680.1,2679.8,1.6097021]
[1727557818287,3.73124,2680.1,2679.9,2.16890552]
[1727557818486,3.73124,2680.1,2679.8,1.6097021]
[1727557818687,3.73124,2680.1,2679.9,2.16890928]
[1727557818847,3.73124,2680.1,2679.8,1.6097021]
[1727557819048,3.73124,2680.1,2679.9,2.16890842]
[1727557819373,3.73124,2680.1,2679.8,1.6097021]
[1727557819576,3.73124,2680.1,2679.9,2.16894273]
[1727557819884,3.73124,2680.1,2679.8,1.6097021]
[1727557820071,3.73124,2680.1,2679.9,2.16894361]
[1727557820383,3.73124,2680.1,2679.8,1.6097021]
[1727557820562,3.73124,2680.1,2679.9,2.16892655]
[1727557820879,3.73124,2680.1,2680.0,0.86757074]
[1727557821083,3.73124,2680.1,2680.0,0.86756727]
[1727557822005,3.73124,2680.1,2679.8,1.6097021]
[1727557822307,3.73124,2680.1,2679.9,2.16896807]
[1727557822485,3.73124,2680.1,2679.8,1.6097021]
[1727557822690,3.73124,2680.1,2679.9,2.16899162]
[1727557823003,3.73124,2680.1,2679.8,1.6097021]
[1727557823162,3.73124,2680.1,2679.9,2.16897305]
[1727557823366,3.73124,2680.1,2679.8,1.6097021]
[1727557823570,3.73124,2680.1,2679.9,2.1690032]
[1727557823797,3.73124,2680.1,2679.8,1.6097021]
[1727557824104,3.73107,2680.2,2679.9,2.16900308]
[1727557824304,3.73107,2680.2,2679.8,1.6097021]
[1727557824609,3.73107,2680.2,2679.9,2.16902148]
[1727557824789,3.73107,2680.2,2679.8,1.6097021]
[1727557824979,3.73107,2680.2,2679.9,2.16902381]
[1727557825179,3.73107,2680.2,2679.8,1.6097021]
[1727557825367,3.73107,2680.2,2679.9,2.16902356]
[1727557825567,3.73107,2680.2,2679.8,1.6097021]
[1727557825767,3.73107,2680.2,2679.9,2.16903668]
[1727557826001,3.73107,2680.2,2679.8,1.6097021]
[1727557826198,3.73107,2680.2,2679.9,2.16903668]
[1727557826407,3.73107,2680.2,2679.8,1.6097021]
[1727557826602,3.73107,2680.2,2679.9,2.16905353]
[1727557826908,3.73128,2680.1,2679.8,1.6097021]
[1727557827200,3.73128,2680.1,2679.9,2.16905862]
[1727557827371,3.73128,2680.1,2679.8,1.6097021]
[1727557827567,3.73128,2680.1,2679.9,2.16909752]
[1727557827890,3.73128,2680.1,2679.8,1.6097021]
[1727557828085,3.73128,2680.1,2679.9,2.16909798]
[1727557828293,3.73128,2680.1,2679.8,1.6097021]
[1727557828495,3.73128,2680.1,2679.9,2.16912073]
[1727557828665,3.73128,2680.1,2679.8,1.6097021]
[1727557829000,3.73128,2680.1,2679.9,2.16910055]
[1727557829203,3.73128,2680.1,2679.8,1.6097021]
[1727557829394,3.73128,2680.1,2679.9,2.16910438]
[1727557829571,3.73128,2680.1,2679.8,0.8266]
[1727557829766,3.73128,2680.1,2679.9,2.1691731]
[1727557829963,3.73128,2680.1,2679.8,0.8266]
[1727557830192,3.73128,2680.1,2679.9,2.16917367]
[1727557830390,3.73162,2679.8,2679.7,0.7831021]
[1727557830593,0.832,2679.8,2679.7,0.86772926]
[1727557830790,0.832,2680.0,2679.7,0.86772926]
[1727557831002,3.73127,2680.1,2679.6,3.73189]
[1727557831003,3.73127,2680.1,2679.6,1.3331021]
[1727557831168,3.73127,2680.1,2679.7,2.16924077]
[1727557831505,3.73127,2680.1,2679.6,1.49216752]
[1727557831708,3.73127,2680.1,2679.8,0.10655393]
[1727557831882,3.73127,2680.1,2679.7,0.10719733]
[1727557832078,3.73127,2680.1,2679.6,4.28189]
[1727557832278,3.73127,2680.1,2679.8,0.10719733]
[1727557832470,3.73127,2680.1,2679.6,4.28189]
[1727557832805,3.73127,2680.1,2679.7,0.97460577]
[1727557832971,3.73127,2680.1,2679.7,0.10719733]
[1727557834073,7.46254,2680.1,2679.7,0.10719733]
[1727557835173,3.73127,2680.1,2679.7,0.10719733]
[1727557835406,7.46256,2680.1,2679.7,0.10719733]
[1727557836484,3.73127,2680.1,2679.7,0.10719733]
[1727557836684,3.73149,2679.9,2679.7,0.10719733]
[1727557840088,3.73127,2680.1,2679.7,0.10719733]
[1727557840288,3.73134,2680.0,2679.7,0.10719733]
[1727557848994,3.73158,2679.9,2679.7,0.10719733]
[1727557849321,3.73158,2679.9,2679.8,0.55]
[1727557849702,3.73158,2679.9,2679.8,0.6571472]
[1727557851302,0.8254,2680.0,2679.8,0.6571472]
[1727557851476,4.55674,2680.0,2679.8,0.6571472]
[1727557853019,0.8254,2680.0,2679.8,0.6571472]
[1727557853187,3.73148,2679.9,2679.8,0.6571472]
[1727557871122,3.73135,2680.0,2679.8,0.6571472]
[1727557874330,4.53538,2679.9,2679.8,0.6571472]
[1727557893478,4.53538,2679.9,2679.8,0.1071472]
[1727557893977,3.7319,2679.6,2679.5,0.55]
[1727557894281,3.73206,2679.5,2679.3,0.55]
[1727557896785,0.8215,2679.6,2679.3,0.55]
[1727557898275,3.73194,2679.6,2679.3,0.55]
[1727557898609,4.49739,2679.8,2679.3,4.2822]
[1727557900199,4.49739,2679.8,2679.3,5.3191068]
[1727557900508,4.49739,2679.8,2679.4,0.7698]
[1727557900712,8.22908,2679.8,2679.5,0.55]
[1727557906220,7.46338,2679.8,2679.5,0.55]
[1727557906427,3.73177,2679.7,2679.5,0.55]
[1727557908786,3.73177,2679.7,2679.6,0.65541272]
[1727557931467,4.56457,2679.7,2679.6,0.65541272]
[1727557938669,4.56457,2679.7,2679.6,0.10541272]
[1727557938856,3.73227,2679.4,2679.3,0.55]
[1727557939065,3.73227,2679.4,2679.3,0.6527646]
[1727557939952,3.73227,2679.4,2679.3,0.1027646]
[1727557939953,5.28979797,2679.4,2679.3,0.1027646]
[1727557940142,11.05823167,2679.4,2679.3,0.1027646]
[1727557940484,7.32596167,2679.4,2678.8,0.1302402]
[1727557940782,3.73273,2679.0,2678.9,0.1029483]
[1727557941571,3.73287,2678.9,2678.8,0.1302402]
[1727557942252,6.73287,2678.9,2678.8,0.1302402]
[1727557942451,7.56097,2678.9,2678.8,0.1302402]
[1727557944553,9.11849797,2678.9,2678.8,0.1302402]
[1727557947704,13.31033492,2678.9,2678.8,0.1302402]
[1727557947851,11.36249797,2678.9,2678.8,0.1302402]
[1727557948059,0.4784,2677.6,2677.1,3.73536]
[1727557948405,7.46871,2677.9,2677.4,0.7615]
[1727557948562,7.46871,2677.9,2677.4,1.2215718]
[1727557948751,3.73431,2677.9,2677.5,0.10578079]
[1727557948953,3.73431,2677.9,2677.4,1.17735259]
[1727557949157,3.73431,2677.9,2677.6,0.10225476]
[1727557949495,4.51881,2677.9,2677.5,0.55]
[1727557949672,3.73444,2677.8,2677.5,0.55]
[1727557950276,3.73468,2677.6,2677.1,3.73536]
[1727557950503,3.73468,2677.6,2677.1,0.614852]
[1727557951408,4.51946,2677.4,2676.7,3.73592]
[1727557951699,3.73476,2677.6,2677.0,3.73543]
[1727557952058,7.46954,2677.6,2677.1,0.7615]
[1727557952284,3.73485,2677.5,2677.1,0.7615]
[1727557952658,3.73485,2677.5,2677.2,0.55]
[1727557953059,3.73476,2677.6,2677.2,0.55]
[1727557953270,7.46953,2677.6,2677.2,0.55]
[1727557953701,3.73476,2677.6,2677.3,0.09921292]
[1727557954003,3.73485,2677.5,2677.3,0.09921292]
[1727557954207,3.73485,2677.5,2677.2,0.55]
[1727557954664,3.73485,2677.5,2677.3,0.09921292]
[1727557954998,3.73485,2677.5,2677.2,0.55]
[1727557955502,3.73485,2677.5,2677.3,0.09921292]
[1727557955703,3.73485,2677.5,2677.2,0.55]
[1727557955900,3.73485,2677.5,2677.3,0.09921292]
[1727557956065,3.73485,2677.5,2677.2,0.55]
[1727557956267,3.73485,2677.5,2677.3,0.09921292]
[1727557956581,3.73476,2677.6,2677.2,0.55]
[1727557956762,7.46957,2677.6,2677.2,0.55]
[1727557956964,7.46955,2677.6,2677.3,0.09921292]
[1727557957265,3.73496,2677.4,2677.2,0.55]
[1727557957497,3.73484,2677.5,2677.3,0.09921292]
[1727557957795,3.73484,2677.5,2677.2,0.55]
[1727557957993,3.73484,2677.5,2677.4,0.09921292]
[1727557958807,3.73498,2677.4,2677.2,0.55]
[1727557959763,3.73498,2677.4,2677.0,0.55]
[1727557959963,3.73519,2677.3,2677.0,0.55]
[1727557960402,3.73526,2677.2,2677.0,0.55]
[1727557967312,3.73538,2677.1,2677.0,0.55]
[1727557967474,4.51536,2677.2,2677.0,0.55]
[1727557967669,8.25068,2677.2,2677.0,0.55]
[1727557967874,4.51536,2677.2,2677.0,0.55]
[1727557968371,4.51536,2677.2,2676.6,8.26334]
[1727557968372,4.51536,2677.2,2676.8,0.55]
[1727557969102,4.51536,2677.2,2677.0,0.55]
[1727557969313,4.51536,2677.2,2676.8,0.55]
[1727557969468,4.51536,2677.2,2677.1,0.65045089]
[1727557969668,4.51536,2677.2,2677.1,0.60045089]
[1727557969978,4.51536,2677.2,2677.1,0.64878422]
[1727557974234,4.51536,2677.2,2677.1,0.59878422]
[1727557974440,4.51536,2677.2,2677.1,0.64711755]
[1727557979812,4.51536,2677.2,2677.1,0.09711755]
[1727557980205,3.73553,2677.0,2676.7,0.55]
[1727557981032,1.55752797,2677.1,2676.7,0.55]
[1727557981304,3.73608,2676.6,2676.2,0.8116]
[1727557981532,3.7365,2676.3,2676.1,0.1302402]
[1727557982344,9.10106797,2676.2,2676.1,0.1302402]
[1727557982551,7.54354,2676.2,2676.1,0.1302402]
[1727557983835,7.54354,2676.2,2676.1,0.21434658]
[1727557994305,7.54354,2676.2,2676.1,0.16434658]
[1727557994783,3.0,2676.3,2676.1,0.16434658]
[1727557994982,3.73639,2676.4,2676.1,0.16434658]
[1727557995284,3.73639,2676.4,2676.2,0.09180074]
[1727557995496,3.7365,2676.3,2676.2,0.09180074]
[1727557996681,0.753,2676.1,2674.8,2.3808042]
[1727557996928,3.73748,2675.6,2674.8,0.8146]
[1727557997081,3.73761,2675.6,2674.8,4.55311]
[1727557997283,4.55752797,2675.9,2674.8,4.55311]
[1727557997284,3.7377,2675.5,2674.8,0.8146]
[1727557997609,3.7377,2675.5,2674.8,4.55306]
[1727557997823,3.7377,2675.5,2674.9,4.193756]